bitfinex/quotes_BTCUSD_20240906
["timestamp","ask_amount","ask_price","bid_price","bid_amount"]
[1725638522806,0.922015,54229.0,54228.0,0.412]
[1725638522807,1.290821,54229.0,54228.0,0.412]
[1725638523070,1.85456578,54229.0,54228.0,0.338238]
[1725638523312,1.85456578,54229.0,54214.0,0.073941]
[1725638523313,0.6846,54229.0,54223.0,0.4]
[1725638523564,2.34686122,54224.0,54223.0,0.4]
[1725638523788,2.44686122,54224.0,54223.0,0.4]
[1725638524517,2.44686122,54224.0,54223.0,0.412]
[1725638525235,2.44686122,54224.0,54223.0,0.4]
[1725638525783,0.9221,54224.0,54223.0,0.4]
[1725638526038,0.9221,54224.0,54223.0,0.423]
[1725638526039,0.55326,54224.0,54223.0,0.423]
[1725638526296,0.000815,54224.0,54223.0,0.423]
[1725638526821,0.00082,54232.0,54231.0,0.184396]
[1725638527051,0.00082,54232.0,54231.0,0.65353]
[1725638527295,0.00082,54232.0,54231.0,1.07539301]
[1725638527538,0.00082,54232.0,54231.0,1.05353]
[1725638528271,0.00082,54232.0,54231.0,1.237926]
[1725638528952,0.00082,54232.0,54231.0,1.07539301]
[1725638529208,0.00082,54232.0,54231.0,1.25978901]
[1725638529673,0.00082,54232.0,54231.0,1.99737301]
[1725638529901,0.00082,54232.0,54231.0,2.00737301]
[1725638530126,0.00082,54232.0,54231.0,1.65258101]
[1725638530612,0.00082,54232.0,54231.0,2.02137301]
[1725638530839,0.00082,54232.0,54231.0,1.65258101]
[1725638531062,0.00082,54232.0,54231.0,1.63858101]
[1725638531295,0.00082,54232.0,54231.0,2.02137301]
[1725638531542,0.00082,54232.0,54231.0,2.2161254]
[1725638531796,0.00082,54232.0,54231.0,2.2021254]
[1725638532290,0.00082,54232.0,54231.0,2.2161254]
[1725638532530,0.00082,54232.0,54231.0,1.65258101]
[1725638533044,0.00082,54232.0,54231.0,2.02137301]
[1725638533282,0.00082,54232.0,54231.0,2.2161254]
[1725638533515,0.00082,54232.0,54231.0,2.01737301]
[1725638533737,0.00082,54232.0,54231.0,2.00737301]
[1725638533965,0.00082,54232.0,54231.0,2.02137301]
[1725638534733,0.00082,54232.0,54231.0,2.2021254]
[1725638534974,0.00082,54232.0,54231.0,2.5709174]
[1725638535205,0.00082,54232.0,54231.0,2.2161254]
[1725638535426,0.00082,54232.0,54231.0,2.5849174]
[1725638535662,0.00082,54232.0,54231.0,2.2235164]
[1725638536105,0.00082,54232.0,54231.0,2.5923084]
[1725638536347,0.00082,54232.0,54231.0,2.2255164]
[1725638536571,0.00082,54232.0,54231.0,2.02476401]
[1725638536837,0.00082,54232.0,54231.0,2.02876401]
[1725638537083,0.922782,54232.0,54231.0,0.458421]
[1725638537316,1.291567,54232.0,54231.0,0.45103]
[1725638537552,1.291567,54232.0,54231.0,0.414]
[1725638538030,1.291567,54232.0,54231.0,0.4]
[1725638538031,1.849652,54232.0,54231.0,0.4]
[1725638538261,1.849652,54232.0,54231.0,0.014]
[1725638538262,3.10999199,54232.0,54231.0,0.014]
[1725638538492,2.054985,54227.0,54226.0,0.4]
[1725638538730,2.054985,54227.0,54226.0,0.21281515]
[1725638538731,3.03134522,54227.0,54226.0,0.21281515]
[1725638538957,3.57572448,54227.0,54226.0,0.19431049]
[1725638539197,3.40016422,54227.0,54226.0,0.19431049]
[1725638539464,1.686429,54216.0,54215.0,0.55430836]
[1725638539704,1.686429,54216.0,54211.0,0.00163]
[1725638539705,0.92227,54214.0,54211.0,0.00163]
[1725638539932,2.27822722,54214.0,54211.0,0.00163]
[1725638540161,2.30713608,54214.0,54211.0,0.00163]
[1725638540389,1.01595808,54214.0,54211.0,0.00163]
[1725638540622,1.291227,54212.0,54211.0,0.00163]
[1725638540858,1.391227,54212.0,54211.0,0.00163]
[1725638541089,1.760149,54212.0,54211.0,0.00163]
[1725638541532,1.760149,54212.0,54211.0,0.40163]
[1725638541751,1.760149,54212.0,54211.0,0.41563]
[1725638542437,1.022305,54212.0,54211.0,0.45266]
[1725638542653,0.553383,54212.0,54211.0,0.45266]
[1725638543110,0.553383,54212.0,54211.0,0.43866]
[1725638543337,0.923305,54212.0,54211.0,0.41563]
[1725638544047,0.922305,54212.0,54211.0,0.40163]
[1725638544512,0.923305,54212.0,54211.0,0.40863]
[1725638544754,0.923305,54212.0,54211.0,0.43163]
[1725638544975,0.553383,54212.0,54211.0,0.42463]
[1725638545200,0.184461,54212.0,54211.0,0.42463]
[1725638545421,1.291227,54212.0,54211.0,0.40163]
[1725638546343,1.291227,54212.0,54211.0,0.41563]
[1725638546344,2.074349,54212.0,54211.0,0.41563]
[1725638546570,2.86151222,54212.0,54211.0,0.41563]
[1725638546801,2.68659022,54212.0,54211.0,0.40163]
[1725638547038,3.05551222,54212.0,54211.0,0.40163]
[1725638547322,3.05651222,54212.0,54211.0,0.41063]
[1725638547567,2.68659022,54212.0,54211.0,0.40163]
[1725638548012,3.05651222,54212.0,54211.0,0.41063]
[1725638548501,2.68759022,54212.0,54211.0,0.41063]
[1725638548723,1.392227,54212.0,54211.0,0.41063]
[1725638549181,1.761149,54212.0,54211.0,0.41063]
[1725638549399,1.760149,54212.0,54211.0,0.40163]
[1725638549882,1.761149,54212.0,54211.0,0.41463]
[1725638550344,1.760149,54212.0,54211.0,0.40163]
[1725638550577,1.761149,54212.0,54211.0,0.41363]
[1725638551047,1.761149,54212.0,54211.0,0.40163]
[1725638551048,2.161849,54212.0,54211.0,0.40163]
[1725638551308,1.90564271,54212.0,54211.0,0.40163]
[1725638551562,2.09110371,54212.0,54211.0,0.41363]
[1725638552744,1.32048171,54212.0,54211.0,0.41363]
[1725638552975,1.38996207,54212.0,54211.0,0.41363]
[1725638553191,1.38996207,54212.0,54211.0,0.40163]
[1725638553192,1.38896207,54212.0,54211.0,0.40163]
[1725638553697,1.38996207,54212.0,54211.0,0.41463]
[1725638554152,1.38896207,54212.0,54211.0,0.40163]
[1725638554386,1.38896207,54212.0,54211.0,1.39989257]
[1725638554387,0.001,54212.0,54211.0,1.39989257]
[1725638554609,0.001,54212.0,54211.0,2.32221257]
[1725638554842,0.001,54212.0,54211.0,1.03096457]
[1725638555098,0.554383,54212.0,54211.0,1.00853]
[1725638555343,1.68689364,54212.0,54211.0,0.41463]
[1725638555562,0.94904964,54212.0,54211.0,0.41463]
[1725638555793,0.94804964,54212.0,54211.0,0.40163]
[1725638556025,0.94804964,54212.0,54211.0,0.41563]
[1725638556269,1.022305,54212.0,54211.0,0.41563]
[1725638556492,0.653383,54212.0,54211.0,0.41563]
[1725638556723,0.284461,54212.0,54211.0,0.40163]
[1725638556958,0.284461,54212.0,54211.0,0.79443]
[1725638556959,0.653383,54212.0,54211.0,0.79443]
[1725638557187,1.022305,54212.0,54211.0,0.41563]
[1725638557416,1.391227,54212.0,54211.0,0.40163]
[1725638557673,0.653383,54212.0,54211.0,0.41563]
[1725638558131,0.553383,54212.0,54211.0,0.41563]
[1725638558349,0.184461,54212.0,54211.0,0.43863]
[1725638558793,0.553383,54212.0,54211.0,0.43863]
[1725638559050,0.922305,54212.0,54211.0,0.42463]
[1725638559516,0.922305,54212.0,54211.0,0.40163]
[1725638559517,1.291227,54212.0,54211.0,0.40163]
[1725638559984,1.291227,54212.0,54211.0,0.41563]
[1725638560448,1.291227,54212.0,54211.0,0.40163]
[1725638560895,1.291227,54212.0,54211.0,0.41563]
[1725638561128,2.345649,54212.0,54211.0,0.41563]
[1725638561856,2.156049,54212.0,54211.0,0.41563]
[1725638562306,2.156049,54212.0,54211.0,0.40163]
[1725638563282,2.156049,54212.0,54211.0,0.41563]
[1725638563513,1.760149,54212.0,54211.0,0.41563]
[1725638563757,1.760149,54212.0,54211.0,0.40163]
[1725638564019,1.760149,54212.0,54211.0,0.41563]
[1725638565510,1.760149,54212.0,54211.0,0.40163]
[1725638565764,1.760149,54212.0,54211.0,0.41563]
[1725638566238,1.391227,54212.0,54211.0,0.40163]
[1725638566522,1.022305,54212.0,54211.0,0.40163]
[1725638566751,0.922305,54212.0,54211.0,0.59823]
[1725638567252,0.922305,54212.0,54211.0,0.58423]
[1725638567516,0.922305,54212.0,54211.0,0.40163]
[1725638568548,0.922305,54212.0,54211.0,0.41563]
[1725638569032,0.922305,54212.0,54211.0,0.40163]
[1725638569532,0.922305,54212.0,54211.0,0.41563]
[1725638569533,1.291227,54212.0,54211.0,0.41563]
[1725638570042,1.291227,54212.0,54211.0,0.40163]
[1725638570043,2.07839022,54212.0,54211.0,0.40163]
[1725638570281,2.07839022,54212.0,54211.0,0.41563]
[1725638570794,1.70946822,54212.0,54211.0,0.41563]
[1725638571055,1.391227,54212.0,54211.0,0.41563]
[1725638571318,1.760149,54212.0,54211.0,0.41563]
[1725638571624,2.07839022,54212.0,54211.0,0.40163]
[1725638572065,2.07839022,54212.0,54211.0,0.41563]
[1725638572355,2.07839022,54212.0,54211.0,0.40163]
[1725638572356,3.01023422,54212.0,54211.0,0.40163]
[1725638572605,3.01023422,54212.0,54202.0,0.0005]
[1725638572606,1.660423,54203.0,54202.0,0.0005]
[1725638572839,2.604206,54203.0,54202.0,0.0005]
[1725638573114,2.604206,54203.0,54172.0,0.034698]
[1725638573115,0.369167,54176.0,54172.0,0.034698]
[1725638573338,0.18459,54174.0,54172.0,0.01735112]
[1725638573577,0.18459,54174.0,54168.0,0.3884]
[1725638573845,0.1,54182.0,54172.0,0.184596]
[1725638574082,0.84824,54195.0,54174.0,0.61279083]
[1725638574083,0.4792,54195.0,54174.0,0.61279083]
[1725638574338,0.369116,54184.0,54175.0,0.184583]
[1725638574601,0.184569,54180.0,54175.0,0.03703]
[1725638574846,0.184569,54180.0,54174.0,0.978279]
[1725638574847,0.184581,54177.0,54174.0,0.6091]
[1725638575105,0.369046,54194.0,54174.0,0.6091]
[1725638575106,0.1,54195.0,54175.0,0.42739095]
[1725638575326,0.31824122,54198.0,54178.0,0.4105]
[1725638575327,0.184562,54183.0,54178.0,0.4105]
[1725638575545,0.184562,54183.0,54179.0,0.06003]
[1725638575758,0.369078,54189.0,54179.0,0.06003]
[1725638575977,0.553708,54180.0,54179.0,0.023]
[1725638576201,0.922847,54180.0,54179.0,0.023]
[1725638576674,0.922847,54180.0,54174.0,0.2116]
[1725638576675,0.31824122,54187.0,54174.0,0.1976]
[1725638576889,0.553759,54175.0,54174.0,0.1976]
[1725638577117,0.369138,54181.0,54174.0,0.1976]
[1725638577333,0.1,54189.0,54174.0,0.1976]
[1725638577334,0.1,54189.0,54179.0,0.602]
[1725638577563,0.369085,54188.0,54180.0,0.04072047]
[1725638577789,0.369085,54188.0,54182.0,0.03703]
[1725638578007,0.369085,54188.0,54183.0,0.00369061]
[1725638578259,0.369065,54191.0,54179.0,0.1996]
[1725638578260,0.369068,54191.0,54184.0,0.40399061]
[1725638578472,0.18454,54189.0,54184.0,0.584855]
[1725638578689,0.553627,54188.0,54187.0,0.03703]
[1725638578905,0.553638,54187.0,54186.0,0.1804]
[1725638579122,0.553638,54187.0,54186.0,0.2034]
[1725638579361,0.92273,54187.0,54186.0,0.2034]
[1725638580225,0.553638,54187.0,54186.0,0.2034]
[1725638581121,0.12525418,54196.0,54187.0,0.03703]
[1725638581352,0.12525418,54196.0,54188.0,0.023]
[1725638581353,0.1,54196.0,54188.0,0.023]
[1725638581575,0.184527,54193.0,54189.0,0.4106]
[1725638581804,0.1,54198.0,54189.0,0.4106]
[1725638581805,0.1,54198.0,54193.0,0.184524]
[1725638582049,0.922033,54228.0,54190.0,0.02669016]
[1725638582050,0.000815,54212.0,54197.0,0.31824122]
[1725638582293,0.000815,54212.0,54203.0,0.31824122]
[1725638582516,0.000815,54212.0,54204.0,0.38498875]
[1725638582761,0.000815,54212.0,54207.0,0.184476]
[1725638582762,0.185276,54212.0,54207.0,0.184476]
[1725638583003,0.000815,54212.0,54208.0,0.023]
[1725638583483,0.000815,54212.0,54207.0,0.11502437]
[1725638583705,0.000815,54212.0,54207.0,0.11521894]
[1725638583923,0.000815,54212.0,54208.0,0.4142]
[1725638584144,0.000815,54212.0,54209.0,0.023]
[1725638584389,0.185277,54212.0,54209.0,0.023]
[1725638585271,0.185277,54212.0,54211.0,0.553392]
[1725638585272,0.000815,54212.0,54211.0,0.553392]
[1725638585486,0.000815,54212.0,54211.0,1.22819142]
[1725638585749,0.000815,54212.0,54211.0,0.836294]
[1725638585970,0.000815,54212.0,54211.0,0.73460131]
[1725638586213,0.000815,54212.0,54211.0,0.6148]
[1725638586214,1.292042,54212.0,54211.0,0.6148]
[1725638586666,0.92312,54212.0,54211.0,0.6148]
[1725638587136,0.92312,54212.0,54211.0,0.6288]
[1725638587606,0.554198,54212.0,54211.0,0.6288]
[1725638587813,0.000815,54212.0,54211.0,0.66581]
[1725638588044,0.000815,54212.0,54211.0,0.850274]
[1725638588271,0.000815,54212.0,54211.0,0.6288]
[1725638588272,0.554198,54212.0,54211.0,0.6288]
[1725638588509,1.292042,54212.0,54211.0,0.014]
[1725638588731,0.553423,54208.0,54207.0,0.3783]
[1725638589188,0.15528957,54208.0,54207.0,0.3783]
[1725638589409,0.89318757,54208.0,54207.0,0.3783]
[1725638589633,0.15528957,54208.0,54207.0,0.3783]
[1725638589861,0.52423857,54208.0,54207.0,0.3783]
[1725638590113,0.52423857,54208.0,54207.0,0.3923]
[1725638590343,0.184467,54210.0,54207.0,0.4153]
[1725638590565,0.369737,54212.0,54208.0,0.06001]
[1725638590566,0.000815,54212.0,54208.0,0.06001]
[1725638590791,0.922355,54209.0,54208.0,0.06001]
[1725638591021,0.922355,54209.0,54208.0,0.023]
[1725638591483,0.737884,54209.0,54207.0,0.014]
[1725638591712,1.022372,54208.0,54207.0,0.014]
[1725638591961,1.391321,54208.0,54207.0,0.014]
[1725638592239,0.284474,54208.0,54207.0,0.014]
[1725638592459,0.184474,54208.0,54207.0,0.014]
[1725638592678,0.922372,54208.0,54207.0,0.014]
[1725638592899,0.184478,54207.0,54206.0,0.3966]
[1725638593139,0.000815,54212.0,54207.0,0.1994]
[1725638593359,0.000815,54212.0,54208.0,0.428959]
[1725638593610,0.000815,54212.0,54211.0,0.03701]
[1725638593851,0.000815,54212.0,54211.0,0.98233]
[1725638594075,0.000815,54212.0,54211.0,0.3986]
[1725638594076,0.185276,54212.0,54211.0,0.3986]
[1725638594287,0.185276,54212.0,54211.0,0.951992]
[1725638594288,0.000815,54212.0,54211.0,0.951992]
[1725638594499,0.000815,54212.0,54211.0,0.989002]
[1725638594743,0.000815,54212.0,54211.0,0.620074]
[1725638594986,0.000815,54212.0,54211.0,0.989002]
[1725638595495,0.000815,54212.0,54211.0,0.43561]
[1725638595745,0.000815,54212.0,54211.0,0.989002]
[1725638596301,0.000815,54212.0,54211.0,0.620074]
[1725638596541,0.000815,54212.0,54211.0,1.003002]
[1725638597029,0.554198,54212.0,54211.0,0.4126]
[1725638597261,0.554198,54212.0,54211.0,0.014]
[1725638597262,0.92312,54212.0,54211.0,0.014]
[1725638597494,0.000815,54212.0,54204.0,0.3796]
[1725638597734,0.368996,54201.0,54200.0,0.3925]
[1725638597966,0.000815,54212.0,54200.0,0.3925]
[1725638598217,0.184489,54204.0,54201.0,0.03701]
[1725638598445,0.184489,54204.0,54197.0,0.4147]
[1725638598446,0.368979,54204.0,54197.0,0.4147]
[1725638598702,0.184508,54198.0,54197.0,0.4147]
[1725638598926,0.553525,54198.0,54197.0,0.4147]
[1725638599621,0.922542,54198.0,54197.0,0.4147]
[1725638599868,0.553525,54198.0,54197.0,0.4287]
[1725638600313,0.368985,54203.0,54197.0,0.4287]
[1725638600314,0.368988,54203.0,54197.0,0.45171]
[1725638600527,0.3769,54211.0,54197.0,0.46571]
[1725638600741,0.184508,54198.0,54197.0,0.46571]
[1725638600954,0.02891013,54209.0,54197.0,0.46571]
[1725638600955,0.368991,54202.0,54197.0,0.46571]
[1725638601187,0.184499,54201.0,54197.0,0.650221]
[1725638601413,0.3769,54211.0,54197.0,0.650221]
[1725638601414,0.000815,54212.0,54199.0,0.49944122]
[1725638601633,0.000815,54212.0,54207.0,0.368953]
[1725638601863,0.000815,54212.0,54211.0,0.03701]
[1725638602101,0.000815,54212.0,54202.0,0.08277745]
[1725638602334,0.000815,54212.0,54199.0,0.01]
[1725638602335,0.92244,54204.0,54203.0,0.023]
[1725638602568,1.291416,54204.0,54203.0,0.023]
[1725638602790,0.368976,54204.0,54198.0,0.06001]
[1725638603004,0.1846,54209.0,54198.0,0.06001]
[1725638603223,0.000815,54212.0,54198.0,0.06001]
[1725638603224,0.184487,54205.0,54201.0,0.03701]
[1725638603447,0.184488,54204.0,54203.0,0.03701]
[1725638603664,0.368958,54207.0,54203.0,0.06001]
[1725638603882,0.368958,54207.0,54203.0,0.05101]
[1725638604100,0.184488,54204.0,54203.0,0.05101]
[1725638604331,0.184488,54204.0,54203.0,0.07401]
[1725638605238,0.000815,54212.0,54203.0,0.06001]
[1725638605488,0.184479,54207.0,54204.0,0.06001]
[1725638605709,0.368936,54210.0,54204.0,0.244497]
[1725638605933,0.184475,54208.0,54205.0,0.00368931]
[1725638606153,0.184475,54208.0,54207.0,0.03701]
[1725638606418,0.369741,54212.0,54207.0,0.03701]
[1725638606643,0.369741,54212.0,54209.0,0.184468]
[1725638606644,0.1,54211.0,54209.0,0.184468]
[1725638606853,0.1,54211.0,54210.0,0.023]
[1725638607297,0.284464,54211.0,54210.0,0.023]
[1725638607560,0.1,54211.0,54210.0,0.06001]
[1725638607761,0.184464,54211.0,54210.0,0.06001]
[1725638607986,0.653392,54211.0,54210.0,0.06001]
[1725638608206,0.284464,54211.0,54210.0,0.023]
[1725638608435,0.000815,54212.0,54211.0,0.184464]
[1725638608652,0.000815,54212.0,54211.0,0.207464]
[1725638609110,0.369737,54212.0,54211.0,0.023]
[1725638609376,0.184464,54211.0,54209.0,0.037]
[1725638609592,0.000815,54212.0,54209.0,0.037]
[1725638609808,0.185277,54212.0,54209.0,0.023]
[1725638610028,0.184466,54211.0,54209.0,0.023]
[1725638610261,0.553402,54210.0,54209.0,0.023]
[1725638610480,0.184472,54209.0,54206.0,0.023]
[1725638610711,0.000815,54212.0,54206.0,0.023]
[1725638610951,0.000815,54212.0,54210.0,0.184464]
[1725638611193,0.02523898,54216.0,54212.0,0.184459]
[1725638611472,0.20968598,54216.0,54213.0,0.184456]
[1725638611704,0.184444,54217.0,54213.0,0.207455]
[1725638611920,0.184441,54218.0,54213.0,0.023]
[1725638612144,0.02502768,54219.0,54214.0,0.184453]
[1725638612371,0.4771,54222.0,54215.0,0.02668858]
[1725638612611,0.184447,54216.0,54215.0,0.023]
[1725638612837,0.3942039,54222.0,54215.0,0.4134]
[1725638613062,0.368872,54220.0,54216.0,0.02668844]
[1725638613306,0.368839,54225.0,54219.0,0.184435]
[1725638613307,0.368834,54225.0,54219.0,0.184435]
[1725638613527,0.368851,54223.0,54220.0,0.023]
[1725638613750,0.368843,54224.0,54220.0,0.023]
[1725638614212,0.18443,54221.0,54218.0,0.20744]
[1725638614426,0.39774228,54224.0,54218.0,0.24445]
[1725638614654,0.39774028,54224.0,54220.0,0.03701]
[1725638614875,0.184426,54222.0,54221.0,0.023]
[1725638615353,0.553279,54222.0,54221.0,0.023]
[1725638616070,0.18443,54221.0,54220.0,0.037]
[1725638616296,0.184428,54222.0,54220.0,0.037]
[1725638616512,0.184428,54222.0,54220.0,0.023]
[1725638616733,0.39774028,54224.0,54221.0,0.014]
[1725638616957,0.922135,54222.0,54221.0,0.014]
[1725638617197,0.553282,54222.0,54221.0,0.023]
[1725638617415,0.184429,54222.0,54221.0,0.023]
[1725638617633,0.18443,54221.0,54220.0,0.037]
[1725638618555,0.02889928,54224.0,54220.0,0.07401]
[1725638618780,0.21331928,54224.0,54223.0,0.03701]
[1725638619010,0.18443,54221.0,54220.0,0.023]
[1725638619243,0.184431,54221.0,54219.0,0.023]
[1725638619463,0.184431,54221.0,54217.0,0.1892]
[1725638619464,0.184427,54222.0,54218.0,0.207439]
[1725638619695,0.368856,54222.0,54221.0,0.014]
[1725638619900,0.553282,54222.0,54221.0,0.037]
[1725638620331,0.553282,54222.0,54221.0,0.023]
[1725638620569,0.553282,54222.0,54217.0,0.1892]
[1725638620570,0.368843,54224.0,54219.0,0.06001]
[1725638620784,0.5533,54220.0,54219.0,0.07401]
[1725638621040,0.922167,54220.0,54219.0,0.014]
[1725638621462,0.5533,54220.0,54219.0,0.05101]
[1725638621712,0.184431,54221.0,54219.0,0.05101]
[1725638621928,0.184426,54222.0,54221.0,0.03701]
[1725638622141,0.553279,54222.0,54221.0,0.06001]
[1725638622352,0.553279,54222.0,54221.0,0.07401]
[1725638623234,0.185241,54222.0,54221.0,0.07401]
[1725638623445,0.554094,54222.0,54221.0,0.07401]
[1725638624352,0.922947,54222.0,54221.0,0.07401]
[1725638624562,0.922947,54222.0,54221.0,0.014]
[1725638624774,1.2918,54222.0,54221.0,0.014]
[1725638625015,0.922947,54222.0,54221.0,0.014]
[1725638626566,0.185241,54222.0,54221.0,0.037]
[1725638626778,0.000815,54222.0,54221.0,0.037]
[1725638627432,0.000815,54222.0,54221.0,0.67084]
[1725638627654,0.000815,54222.0,54221.0,0.48641]
[1725638628353,0.000815,54222.0,54221.0,0.037]
[1725638628582,0.000815,54222.0,54221.0,0.014]
[1725638628583,0.185241,54222.0,54221.0,0.014]
[1725638628794,0.000815,54222.0,54221.0,0.014]
[1725638629476,0.000815,54222.0,54221.0,0.037]
[1725638631470,0.000815,54222.0,54221.0,0.22143]
[1725638631695,0.000815,54222.0,54221.0,1.35665]
[1725638631921,0.4798,54236.0,54221.0,1.19843668]
[1725638632154,0.00082,54243.0,54221.0,1.19843668]
[1725638632155,0.4798,54241.0,54231.0,1.80020711]
[1725638632378,0.00082,54243.0,54231.0,2.11373359]
[1725638632604,0.48062,54246.0,54241.0,0.03701]
[1725638632605,0.20106765,54246.0,54241.0,0.03701]
[1725638632868,0.0003,54250.0,54243.0,0.184354]
[1725638633125,0.0003,54250.0,54242.0,0.4144]
[1725638633126,0.368675,54249.0,54242.0,0.4144]
[1725638633367,0.368675,54249.0,54241.0,0.03701]
[1725638633368,0.184349,54245.0,54241.0,0.03701]
[1725638633603,0.36951,54247.0,54232.0,0.368785]
[1725638633604,0.184369,54239.0,54232.0,0.368785]
[1725638633820,0.23886159,54243.0,54232.0,0.368785]
[1725638633821,0.184373,54238.0,54233.0,0.023]
[1725638634039,0.1922,54241.0,54233.0,0.023]
[1725638634258,0.1922,54241.0,54224.0,1.21863208]
[1725638634259,0.368752,54237.0,54224.0,1.21863208]
[1725638634468,0.184383,54235.0,54227.0,0.368819]
[1725638634704,0.184377,54237.0,54228.0,0.06001]
[1725638634946,0.184377,54237.0,54225.0,0.391833]
[1725638634947,0.02494328,54239.0,54229.0,0.023]
[1725638635172,0.22109255,54241.0,54234.0,0.184385]
[1725638635415,0.184369,54239.0,54234.0,0.184385]
[1725638635647,0.22109255,54241.0,54236.0,0.368753]
[1725638635648,0.02889255,54241.0,54236.0,0.368753]
[1725638635864,0.368736,54240.0,54231.0,0.368788]
[1725638636081,0.05470366,54241.0,54232.0,0.023]
[1725638636298,0.184368,54240.0,54234.0,0.184385]
[1725638636512,0.184368,54240.0,54235.0,0.023]
[1725638636753,0.05470366,54241.0,54236.0,0.184377]
[1725638636975,0.185162,54247.0,54242.0,0.184358]
[1725638637198,0.185162,54247.0,54240.0,0.751731]
[1725638637199,0.21405138,54247.0,54240.0,0.751731]
[1725638637444,0.1,54246.0,54242.0,0.184358]
[1725638638083,0.284346,54246.0,54241.0,0.023]
[1725638638314,0.284346,54246.0,54241.0,0.207361]
[1725638638610,0.18435,54245.0,54241.0,0.023]
[1725638638816,0.1,54244.0,54241.0,0.023]
[1725638639053,0.1,54246.0,54241.0,0.023]
[1725638639306,0.02970938,54247.0,54246.0,0.36869]
[1725638639537,0.02970938,54247.0,54246.0,0.023]
[1725638639749,0.02970938,54247.0,54246.0,0.207345]
[1725638639750,0.00082,54247.0,54246.0,0.207345]
[1725638639964,0.00082,54247.0,54246.0,0.023]
[1725638640397,0.00082,54247.0,54243.0,0.06001]
[1725638640640,0.00082,54247.0,54246.0,0.184345]
[1725638640868,0.00082,54247.0,54246.0,1.53351145]
[1725638641103,0.00082,54247.0,54246.0,1.898515]
[1725638641325,0.00082,54247.0,54246.0,1.95828429]
[1725638641996,0.00082,54247.0,54246.0,1.97228429]
[1725638642484,0.00082,54247.0,54246.0,1.95828429]
[1725638642711,0.00082,54247.0,54246.0,1.97228429]
[1725638642964,0.00082,54247.0,54246.0,0.68186929]
[1725638643206,0.00082,54247.0,54240.0,0.01]
[1725638643207,0.60836459,54247.0,54239.0,0.3801]
[1725638643422,0.60836459,54247.0,54236.0,0.073909]
[1725638643423,0.184375,54237.0,54236.0,0.073909]
[1725638643635,0.60756759,54244.0,54235.0,0.5756]
[1725638643868,0.00082,54247.0,54235.0,0.073911]
[1725638643869,0.553137,54236.0,54235.0,0.073911]
[1725638644110,0.553137,54236.0,54232.0,0.01731575]
[1725638644111,0.553168,54233.0,54232.0,0.01731575]
[1725638644587,0.921947,54233.0,54232.0,0.01731575]
[1725638645267,0.184386,54234.0,54232.0,0.01731575]
[1725638645491,0.184389,54233.0,54232.0,0.05432575]
[1725638645722,0.921947,54233.0,54232.0,0.01731575]
[1725638645953,0.921947,54233.0,54232.0,0.03131575]
[1725638646171,0.39427341,54238.0,54232.0,0.03131575]
[1725638646431,0.184389,54233.0,54232.0,0.01731575]
[1725638646867,0.553168,54233.0,54232.0,0.01731575]
[1725638647079,1.885226,54233.0,54232.0,0.01731575]
[1725638647297,1.885226,54233.0,54232.0,0.03131575]
[1725638647511,1.147668,54233.0,54232.0,0.03294575]
[1725638647939,0.553168,54233.0,54232.0,0.03294575]
[1725638648368,0.921947,54233.0,54232.0,0.03294575]
[1725638648588,0.553168,54233.0,54232.0,0.01894575]
[1725638648824,0.00082,54247.0,54235.0,0.01]
[1725638649033,0.00082,54247.0,54246.0,0.42320659]
[1725638649255,0.00082,54247.0,54246.0,0.42386159]
[1725638649484,0.00082,54247.0,54246.0,1.36858659]
[1725638649711,0.00082,54247.0,54246.0,1.76075782]
[1725638650606,0.00082,54247.0,54246.0,1.81176782]
[1725638651939,0.00082,54247.0,54246.0,1.79776782]
[1725638652158,0.00082,54247.0,54246.0,1.8767681]
[1725638652595,0.00082,54247.0,54246.0,1.5080781]
[1725638652888,0.00082,54247.0,54246.0,1.5220781]
[1725638653103,0.00082,54247.0,54246.0,1.1533881]
[1725638653324,0.00082,54247.0,54246.0,0.24501]
[1725638653536,0.00082,54247.0,54245.0,0.3862]
[1725638653537,0.00082,54247.0,54244.0,0.184351]
[1725638653749,0.00082,54247.0,54246.0,0.014]
[1725638654608,0.00082,54247.0,54246.0,0.567035]
[1725638654827,0.00082,54247.0,54246.0,0.88489687]
[1725638655043,0.00082,54247.0,54246.0,1.60827687]
[1725638655258,0.00082,54247.0,54246.0,2.18302926]
[1725638655473,0.00082,54247.0,54246.0,2.79787674]
[1725638655687,0.00082,54247.0,54246.0,2.86214989]
[1725638655951,0.00082,54247.0,54246.0,2.84814989]
[1725638656177,0.00082,54247.0,54246.0,2.83088674]
[1725638656407,0.00082,54247.0,54246.0,2.84488674]
[1725638656821,0.00082,54247.0,54246.0,2.83088674]
[1725638657022,0.00082,54247.0,54246.0,2.84488674]
[1725638657241,0.00082,54247.0,54246.0,2.52702487]
[1725638657443,0.00082,54247.0,54246.0,1.91275435]
[1725638657590,0.00082,54247.0,54246.0,1.88949687]
[1725638658220,0.00082,54247.0,54246.0,2.25818687]
[1725638658436,0.00082,54247.0,54246.0,1.88949687]
[1725638658630,0.00082,54247.0,54246.0,1.87549687]
[1725638659064,0.00082,54247.0,54246.0,2.4859249]
[1725638659498,0.00082,54247.0,54246.0,2.5059249]
[1725638659730,0.00082,54247.0,54246.0,2.50920779]
[1725638659949,0.00082,54247.0,54246.0,2.69160868]
[1725638660149,0.00082,54247.0,54246.0,3.06029868]
[1725638660436,0.00082,54247.0,54246.0,3.07629868]